fUSD/lending_fUSD_20251027
["ID","MTS","AMOUNT","RATE_DAILY","PERIOD"]
[392489850,1761557860289,-500.0,0.00044999,120]
[392489851,1761557860318,-500.0,0.00044999,120]
[392489852,1761557860347,-500.0,0.00044999,120]
[392489853,1761557860374,-500.0,0.00044999,120]
[392489854,1761557860403,-500.0,0.00044999,120]
[392489855,1761557860430,-275.99305448,0.00044999,120]
[392489856,1761557860459,-999.0,0.00044999,120]
[392489857,1761557860488,-250.0,0.00044999,120]
[392489858,1761557860517,-250.0,0.00044999,120]
[392489859,1761557860545,-250.0,0.00044999,120]
[392489860,1761557860574,-250.0,0.00044999,120]
[392489861,1761557860603,-250.0,0.00044999,120]
[392489862,1761557860634,-250.0,0.00044999,120]
[392489863,1761557860664,-250.0,0.00044999,120]
[392489864,1761557860694,-250.0,0.00044999,120]
[392489865,1761557860725,-250.0,0.00044999,120]
[392489866,1761557860756,-250.0,0.00044999,120]
[392489867,1761557860786,-250.0,0.00044999,120]
[392489868,1761557860816,-250.0,0.00044999,120]
[392489869,1761557860845,-250.0,0.00044999,120]
[392489870,1761557860874,-250.0,0.00044999,120]
[392489871,1761557860902,-250.0,0.00044999,120]
[392489872,1761557860931,-250.0,0.00044999,120]
[392489873,1761557860960,-250.0,0.00044999,120]
[392489874,1761557860989,-250.0,0.00044999,120]
[392489875,1761557861018,-250.0,0.00044999,120]
[392489876,1761557861046,-250.0,0.00044999,120]
[392489877,1761557861077,-250.0,0.00044999,120]
[392489878,1761557861106,-250.0,0.00044999,120]
[392489879,1761557861135,-250.0,0.00044999,120]
[392489880,1761557861164,-250.0,0.00044999,120]
[392489881,1761557861194,-250.0,0.00044999,120]
[392489882,1761557861222,-394.92652342,0.00044999,120]
[392489883,1761557861254,-569.68,0.00044999,120]
[392489884,1761557861283,-5645.96459835,0.00045,61]
[392489885,1761557861313,-25508.88386247,0.00045,44]
[392489886,1761557861342,-31693.00434858,0.00045,120]
[392489887,1761557861371,-1000000.0,0.00045,120]
[392489888,1761557861403,-1000000.0,0.00045,120]
[392489889,1761557861444,-1000000.0,0.00045,120]
[392489890,1761557861483,-886882.63967768,0.00045,120]
[392489891,1761557865737,-500.0,0.00043806,60]
[392489892,1761557865768,-1543.68,0.00043835,120]
[392489893,1761557865803,-1543.68,0.00044943,120]
[392489894,1761557865835,-1543.68,0.00044989,120]
[392489895,1761557865866,-1543.68,0.00044989,120]
[392489896,1761557865896,-1543.68,0.00044989,120]
[392489897,1761557865928,-1543.68,0.00044999,120]
[392489898,1761557865958,-1543.68,0.00044999,120]
[392489899,1761557865988,-113117.36032232,0.00045,120]
[392489900,1761557866018,-1000000.0,0.00045,120]
[392489901,1761557866048,-1000000.0,0.00045,120]
[392489902,1761557866079,-1000000.0,0.00045,120]
[392489903,1761557866108,-799999.0,0.00045,120]
[392489904,1761557866137,-236.46525117,0.00045,30]
[392489905,1761557866165,-661.09226433,0.00045,120]
[392489906,1761557866193,-153.463115,0.00045,120]
[392489907,1761557866220,-464.24638379,0.00045,120]
[392489908,1761557866253,-259.23789932,0.00045,120]
[392489909,1761557866282,-476.82960453,0.00045,120]
[392489910,1761557866444,-534.6380308,0.00045,90]
[392489911,1761557866479,-151.0,0.00045,120]
[392489912,1761557866509,-151.0,0.00045,120]
[392489913,1761557866538,-151.0,0.00045,120]
[392489914,1761557866568,-168.421346,0.00045,120]
[392489915,1761557866598,-156.685551,0.00045,120]
[392489916,1761557866627,-151.0,0.00045,120]
[392489917,1761557866657,-151.0,0.00045,120]
[392489918,1761557866687,-162.707354,0.00045,120]
[392489919,1761557866716,-1576.71,0.00045,30]
[392489920,1761557866747,-69972.38287774,0.00045,120]
[392489921,1761557871102,-1543.68,0.00044999,120]
[392489922,1761557871136,-1543.68,0.00044999,120]
[392489923,1761557871170,-1543.68,0.00044999,120]
[392489924,1761557871203,-1543.68,0.00044999,120]
[392489925,1761557871238,-1543.68,0.00044999,120]
[392489926,1761557871271,-1543.68,0.00044999,120]
[392489927,1761557871303,-1543.68,0.00044999,120]
[392489928,1761557871334,-1543.68,0.00044999,120]
[392489929,1761557871363,-1543.68,0.00044999,120]
[392489930,1761557871392,-1543.68,0.00044999,120]
[392489931,1761557871420,-1543.68,0.00044999,120]
[392489932,1761557871450,-1543.68,0.00044999,120]
[392489933,1761557871479,-1543.68,0.00044999,120]
[392489934,1761557871508,-1543.68,0.00044999,120]
[392489935,1761557871538,-1543.68,0.00044999,120]
[392489936,1761557871569,-1543.68,0.00044999,120]
[392489937,1761557871600,-1543.90523699,0.00044999,120]
[392489938,1761557871631,-187160.61712226,0.00045,120]
[392489939,1761557871661,-151.3,0.00045,30]
[392489940,1761557871690,-154.258095,0.00045,120]
[392489941,1761557871719,-159.271166,0.00045,120]
[392489942,1761557871749,-151.0,0.00045,120]
[392489943,1761557871787,-151.0,0.00045,120]
[392489944,1761557871817,-500.0,0.00045,120]
[392489945,1761557871847,-500.0,0.00045,120]
[392489946,1761557871875,-500.0,0.00045,120]
[392489947,1761557871903,-500.0,0.00045,120]
[392489948,1761557871932,-500.0,0.00045,120]
[392489949,1761557871961,-500.0,0.00045,120]
[392489950,1761557871990,-500.0,0.00045,120]
[392489951,1761557872020,-500.0,0.00045,120]
[392489952,1761557872049,-153.759784,0.00045,120]
[392489953,1761557872083,-151.0,0.00045,120]
[392489954,1761557872114,-157.524906,0.00045,120]
[392489955,1761557872144,-151.0,0.00045,120]
[392489956,1761557872174,-406.06521941,0.00045,30]
[392489957,1761557872203,-151.0,0.00045,120]
[392489958,1761557872236,-151.0,0.00045,120]
[392489959,1761557872270,-151.0,0.00045,120]
[392489960,1761557872300,-151.0,0.00045,120]
[392489961,1761557872333,-151.0,0.00045,120]
[392489962,1761557872371,-151.0,0.00045,120]
[392489963,1761557872406,-157.344206,0.00045,120]
[392489964,1761557872450,-151.0,0.00045,120]
[392489965,1761557872485,-151.0,0.00045,120]
[392489966,1761557872520,-5315.7,0.00045,120]
[392489967,1761557872556,-151.0,0.00045,120]
[392489968,1761557872593,-151.0,0.00045,120]
[392489969,1761557872629,-151.0,0.00045,120]
[392489970,1761557872670,-152.094092,0.00045,120]
[392489971,1761557872706,-151.0,0.00045,120]
[392489972,1761557872739,-160.462741,0.00045,120]
[392489973,1761557872774,-151.0,0.00045,120]
[392489974,1761557872811,-151.0,0.00045,120]
[392489975,1761557872847,-153.030265,0.00045,120]
[392489976,1761557872882,-151.0,0.00045,120]
[392489977,1761557872920,-151.0,0.00045,120]
[392489978,1761557872956,-151.0,0.00045,120]
[392489979,1761557872995,-157.117695,0.00045,120]
[392489980,1761557873032,-151.0,0.00045,120]
[392489981,1761557873071,-151.0,0.00045,120]
[392489982,1761557873111,-500.02,0.00045,120]
[392489983,1761557873150,-176.576927,0.00045,120]
[392489984,1761557873187,-156.958831,0.00045,120]
[392489985,1761557873231,-156.593382,0.00045,120]
[392489986,1761557873270,-303.3217301,0.00045028,60]
[392489987,1761557873312,-690.82040483,0.00045028,60]
[392489988,1761557873350,-212.05234605,0.00045028,60]
[392489989,1761557873387,-500.0,0.00045167,120]
[392489990,1761557873426,-150.0,0.00045205,60]
[392489991,1761557873465,-735.8893131,0.0004554,120]
[392489992,1761557873498,-284.8759898,0.000457,120]
[392489993,1761557873531,-674.74,0.00045749,120]
[392489994,1761557873564,-538.59,0.00045749,120]
[392489995,1761557873597,-147644.47203829,0.0004575,120]
[392489996,1761557873627,-1092.0,0.0004575,30]
[392489997,1761557873659,-1092.0,0.0004575,30]
[392489998,1761557873691,-1011.36652242,0.000459,120]
[392489999,1761557873722,-875.0,0.000459,30]
[392490000,1761557873752,-215.0,0.000459,40]
[392490001,1761557873782,-244.79969743,0.000459,120]
[392490002,1761557873819,-186.33899509,0.000459,30]
[392490003,1761557873856,-674.74,0.00045999,120]
[392490004,1761557874010,-674.74,0.00045999,120]
[392490005,1761557874044,-674.74,0.00045999,120]
[392490006,1761557874077,-674.74,0.00045999,120]
[392490007,1761557874111,-538.59,0.00045999,120]
[392490008,1761557874146,-538.59,0.00045999,120]
[392490009,1761557874180,-538.59,0.00045999,120]
[392490010,1761557874213,-538.59,0.00045999,120]
[392490011,1761557874249,-1000000.0,0.00046,120]
[392490012,1761557874280,-1000.0,0.00046,30]
[392490013,1761557874311,-765.73734946,0.00046,30]
[392490014,1761557874343,-150.0,0.00046,120]
[392490015,1761557874375,-150.0,0.00046,120]
[392490016,1761557874408,-380.0,0.00046,120]
[392490017,1761557874439,-48000.0,0.00046,33]
[392490018,1761557874471,-300.0,0.00046,120]
[392490019,1761557874503,-1027.90960913,0.00046,120]
[392490020,1761557874533,-178.36197011,0.00046,120]
[392490021,1761557874563,-176.13611846,0.00046,120]
[392490022,1761557874594,-184.38244145,0.00046,120]
[392490023,1761557874623,-204.098044,0.00046,30]
[392490024,1761557874653,-644.91877909,0.0004613,120]
[392490025,1761557874684,-674.74,0.00046152,120]
[392490026,1761557874715,-538.59,0.00046152,120]
[392490027,1761557874746,-151.0,0.000462,120]
[392490028,1761557874777,-674.74,0.00046249,120]
[392490029,1761557874808,-674.74,0.00046249,120]
[392490030,1761557874840,-674.74,0.00046249,120]
[392490031,1761557874871,-674.74,0.00046249,120]
[392490032,1761557874905,-674.74,0.00046249,120]
[392490033,1761557874938,-674.94350021,0.00046249,120]
[392490034,1761557874970,-538.59,0.00046249,120]
[392490035,1761557875004,-538.59,0.00046249,120]
[392490036,1761557875037,-538.59,0.00046249,120]
[392490037,1761557875071,-538.59,0.00046249,120]
[392490038,1761557875104,-538.59,0.00046249,120]
[392490039,1761557875137,-538.59955151,0.00046249,120]
[392490040,1761557875170,-1000000.0,0.0004625,120]
[392490041,1761557875203,-10000.0,0.000463,120]
[392490042,1761557875236,-875.0,0.0004635,30]
[392490043,1761557875267,-151.3,0.000464,30]
[392490044,1761557875300,-1000000.0,0.000465,120]
[392490045,1761557875333,-150.0,0.000465,120]
[392490046,1761557875363,-160.0,0.000465,120]
[392490047,1761557875391,-151.0,0.000465,120]
[392490048,1761557875421,-167.892346,0.000465,120]
[392490049,1761557875450,-151.0,0.000465,120]
[392490050,1761557875482,-151.0,0.000465,120]
[392490051,1761557875512,-151.0,0.000465,120]
[392490052,1761557875542,-151.0,0.000465,120]
[392490053,1761557875572,-151.0,0.000465,120]
[392490054,1761557875602,-151.0,0.000465,120]
[392490055,1761557875633,-151.0,0.000465,120]
[392490056,1761557875663,-151.0,0.000465,120]
[392490057,1761557875694,-151.0,0.000465,120]
[392490058,1761557875725,-151.0,0.000465,120]
[392490059,1761557875758,-151.0,0.000465,120]
[392490060,1761557875789,-264.718023,0.000465,120]
[392490061,1761557875819,-151.0,0.000465,120]
[392490062,1761557875849,-151.0,0.000465,120]
[392490063,1761557875880,-156.46754,0.000465,120]
[392490064,1761557875911,-151.0,0.000465,120]
[392490065,1761557875945,-151.0,0.000465,120]
[392490066,1761557875976,-171.873648,0.000465,120]
[392490067,1761557876008,-151.0,0.000465,120]
[392490068,1761557876039,-160.646219,0.000465,120]
[392490069,1761557876069,-151.0,0.000465,120]
[392490070,1761557876099,-156.64506,0.000465,30]
[392490071,1761557876128,-151.0,0.000465,120]
[392490072,1761557876159,-151.0,0.000465,120]
[392490073,1761557876192,-209.414135,0.000465,120]
[392490074,1761557876224,-209.414135,0.000465,120]
[392490075,1761557876258,-161.384246,0.000465,120]
[392490076,1761557876290,-209.414135,0.000465,120]
[392490077,1761557876319,-209.414135,0.000465,120]
[392490078,1761557876349,-151.0,0.000465,120]
[392490079,1761557876379,-151.0,0.000465,120]
[392490080,1761557876408,-151.0,0.000465,30]
[392490081,1761557876438,-151.0,0.000465,120]
[392490082,1761557876467,-150.0,0.00046575,60]
[392490083,1761557876634,500.0,0.00043835,120]
[392490084,1761557876680,500.0,0.00044943,120]
[392490085,1761557876718,500.0,0.00044989,120]
[392490086,1761557876755,165.09,0.00044989,120]
[392490087,1761557880115,1624.90101976,0.00046505,30]
[392490088,1761557880157,3143.68,0.00044998,120]
[392490089,1761557880197,213.24860999,0.00043835,120]
[392490090,1761557880378,3143.68,0.00044999,120]
[392490091,1761557880603,3143.68,0.00044999,120]
[392490092,1761557880828,3143.68,0.00044999,120]
[392490093,1761557881056,3143.68,0.00044999,120]
[392490094,1761557881323,3143.68,0.00044999,120]
[392490095,1761557881589,3143.68,0.00044999,120]
[392490096,1761557881843,3143.68,0.00044999,120]
[392490097,1761557881894,504.7797653,0.00046505,30]
[392490098,1761557882076,3143.68,0.00044999,120]
[392490099,1761557882317,3143.68,0.00044999,120]
[392490100,1761557882544,3143.68,0.00044999,120]
[392490101,1761557882829,3143.68,0.00044999,120]
[392490102,1761557883242,3143.68,0.00044999,120]
[392490103,1761557883511,3143.68,0.00044999,120]
[392490104,1761557883760,3143.68,0.00044999,120]
[392490105,1761557884098,3143.68,0.00044999,120]
[392490106,1761557884328,3143.68,0.00044999,120]
[392490107,1761557884709,3143.68,0.00044999,120]
[392490108,1761557884949,3143.68,0.00044999,120]
[392490109,1761557885201,3143.68,0.00044999,120]
[392490110,1761557885462,3143.68,0.00044999,120]
[392490111,1761557885714,3143.68,0.00044999,120]
[392490112,1761557885964,3143.68,0.00044999,120]
[392490113,1761557886208,3143.7,0.00044999,120]
[392490114,1761557886351,151.0,0.00046575,30]
[392490115,1761557887034,151.0,0.00046575,30]
[392490116,1761557887143,301.03055678,0.00043835,120]
[392490117,1761557887645,151.0,0.00046575,30]
[392490118,1761557888294,151.0,0.00046575,30]
[392490119,1761557888913,151.0,0.00046575,30]
[392490120,1761557889137,553.45946808,0.00044998,120]
[392490121,1761557889255,250.0,0.00046575,30]
[392490122,1761557889539,151.0,0.00046575,30]
[392490123,1761557890203,151.0,0.00046575,30]
[392490124,1761557890385,250.0,0.00046575,30]
[392490125,1761557890837,151.0,0.00046575,30]
[392490126,1761557891060,250.0,0.00046575,30]
[392490127,1761557891097,500.0,0.00046575,30]
[392490128,1761557891502,151.0,0.00046575,30]
[392490129,1761557891684,250.0,0.00046575,30]
[392490130,1761557891806,500.0,0.00046575,30]
[392490131,1761557892134,151.0,0.00046575,30]
[392490132,1761557892350,250.0,0.00046575,30]
[392490133,1761557892527,500.0,0.00046575,30]
[392490134,1761557892812,151.0,0.00046575,30]
[392490135,1761557892989,250.0,0.00046575,30]
[392490136,1761557893178,500.0,0.00046575,30]
[392490137,1761557893419,151.0,0.00046575,30]
[392490138,1761557893613,397.55468853,0.00046575,30]
[392490139,1761557893872,500.0,0.00046575,30]
[392490140,1761557894038,151.0,0.00046575,30]
[392490141,1761557894197,500.0,0.00046575,30]
[392490142,1761557894531,500.0,0.00046575,30]
[392490143,1761557894691,151.0,0.00046575,30]
[392490144,1761557894818,500.0,0.00046575,30]
[392490145,1761557895195,500.0,0.00046575,30]
[392490146,1761557895411,151.0,0.00046575,30]
[392490147,1761557895463,500.0,0.00046575,30]
[392490148,1761557895780,500.0,0.00043835,120]
[392490149,1761557895847,500.0,0.00046575,30]
[392490150,1761557895891,1000.0,0.00043835,120]
[392490151,1761557895945,151.0,0.00046575,30]
[392490152,1761557896012,253.94193668,0.00044943,120]
[392490153,1761557896072,500.0,0.00046575,30]
[392490154,1761557896606,151.0,0.00046575,30]
[392490155,1761557896717,500.0,0.00046575,30]
[392490156,1761557896829,500.0,0.00046575,30]
[392490157,1761557897255,275.02,0.00044917,30]
[392490158,1761557897293,151.0,0.00046575,30]
[392490159,1761557897354,500.0,0.00046575,30]
[392490160,1761557897393,500.0,0.00046575,30]
[392490161,1761557897535,275.02,0.00045191,30]
[392490162,1761557897822,275.02,0.00045465,30]
[392490163,1761557897961,500.0,0.00043835,120]
[392490164,1761557898001,151.0,0.00046575,30]
[392490165,1761557898037,500.0,0.00043835,120]
[392490166,1761557898076,500.0,0.00046575,30]
[392490167,1761557898114,500.0,0.00046575,30]
[392490168,1761557898152,275.02,0.00045739,30]
[392490169,1761557898429,275.03,0.00046013,30]
[392490170,1761557898605,500.0,0.00046575,30]
[392490171,1761557898642,151.0,0.00046575,30]
[392490172,1761557898682,551.97444983,0.00046575,30]
[392490174,1761557908533,-187.00437377,0.00043835,120]
[392490175,1761557908566,-159.43505772,0.00043835,120]
[392490176,1761557908599,-608.26,0.00043835,120]
[392490177,1761557908632,-500.0,0.00043835,120]
[392490178,1761557908662,-500.0,0.00043835,120]
[392490179,1761557908694,-636.98,0.00043835,120]
[392490180,1761557908724,-500.0,0.00043835,120]
[392490181,1761557908759,-500.0,0.00044998,120]
[392490182,1761557908790,-519.49064199,0.00044998,120]
[392490183,1761557908822,-500.0,0.00044998,120]
[392490184,1761557908861,-500.0,0.00046575,30]
[392490185,1761557908894,-500.0,0.00046575,30]
[392490186,1761557908926,-500.0,0.00046575,30]
[392490187,1761557908958,-500.0,0.00046575,30]
[392490188,1761557908991,-500.0,0.00046575,30]
[392490189,1761557909023,-250.0,0.00046575,30]
[392490190,1761557909059,-500.0,0.00046575,30]
[392490191,1761557909090,-500.0,0.00046575,30]
[392490192,1761557909123,-500.0,0.00046575,30]
[392490193,1761557909154,-500.0,0.00046575,30]
[392490194,1761557909186,-500.0,0.00046575,30]
[392490195,1761557909216,-500.0,0.00046575,30]
[392490196,1761557909249,-500.0,0.00046575,30]
[392490197,1761557909280,-500.0,0.00046575,30]
[392490198,1761557909313,-500.0,0.00046575,30]
[392490199,1761557909348,-500.0,0.00046575,30]
[392490200,1761557909379,-500.0,0.00046575,30]
[392490201,1761557909410,-500.0,0.00046575,30]
[392490202,1761557909439,-500.0,0.00046575,30]
[392490203,1761557909468,-500.0,0.00046575,30]
[392490204,1761557909498,-500.0,0.00046575,30]
[392490205,1761557909528,-500.0,0.00046575,30]
[392490206,1761557909557,-500.0,0.00046575,30]
[392490207,1761557909586,-54961.43351769,0.0004658,100]
[392490208,1761557909765,-1135.03598775,0.000466,120]
[392490209,1761557909796,-1000000.0,0.0004675,120]
[392490210,1761557909826,-1226.46757837,0.000468,120]
[392490211,1761557909855,-388.0,0.000468,120]
[392490212,1761557909885,-1576.71,0.000468,30]
[392490213,1761557909915,-831.71588269,0.000469,120]
[392490214,1761557909947,-1600.0,0.00046946,120]
[392490215,1761557909977,-1000.0,0.00046999,120]
[392490216,1761557910007,-1000000.0,0.00047,120]
[392490217,1761557910041,-1000.0,0.00047,120]
[392490218,1761557910071,-609.03849011,0.00047,30]
[392490219,1761557910100,-150.0,0.00047,120]
[392490220,1761557910130,-150.0,0.00047,120]
[392490221,1761557910159,-380.0,0.00047,120]
[392490222,1761557910189,-40000.0,0.00047,120]
[392490223,1761557910219,-4000.0,0.00047,120]
[392490224,1761557910248,-20000.0,0.00047,120]
[392490225,1761557910278,-36000.0,0.00047,120]
[392490226,1761557910310,-1930.0,0.00047,120]
[392490227,1761557910342,-2682.0,0.00047,120]
[392490228,1761557910374,-1760.0,0.00047,120]
[392490229,1761557910407,-1000000.0,0.0004725,120]
[392490230,1761557910438,-309140.598,0.0004725,120]
[392490231,1761557910468,-151.0,0.0004725,120]
[392490232,1761557910497,-169.100842,0.0004725,120]
[392490233,1761557910526,-260.143152,0.0004725,120]
[392490234,1761557910556,-151.0,0.0004725,120]
[392490235,1761557910585,-151.0,0.0004725,120]
[392490236,1761557910615,-236.691368,0.0004725,120]
[392490237,1761557910644,-151.0,0.0004725,120]
[392490238,1761557910673,-151.0,0.0004725,120]
[392490239,1761557910702,-151.0,0.0004725,120]
[392490240,1761557910731,-151.0,0.0004725,120]
[392490241,1761557910760,-151.0,0.0004725,120]
[392490242,1761557910791,-188.846462,0.0004725,120]
[392490243,1761557910822,-209.414135,0.0004725,120]
[392490244,1761557910855,-209.414135,0.0004725,120]
[392490245,1761557910886,-209.414135,0.0004725,120]
[392490246,1761557910919,-209.414135,0.0004725,120]
[392490247,1761557910952,-151.0,0.0004725,30]
[392490248,1761557910983,-173.86115,0.0004725,120]
[392490249,1761557911015,-10000.0,0.000473,120]
[392490250,1761557911048,-490392.53095591,0.000475,120]
[392490251,1761557913925,-500.0,0.00043835,120]
[392490252,1761557913960,-556.33278869,0.00043835,120]
[392490253,1761557913993,-500.0,0.00043835,120]
[392490254,1761557914028,-500.0,0.00044608,120]
[392490255,1761557914064,-573.56116296,0.00044998,120]
[392490256,1761557914095,-500.0,0.00044998,120]
[392490257,1761557914134,-500.0,0.00046575,30]
[392490258,1761557914167,-500.0,0.00046575,30]
[392490259,1761557914200,-500.0,0.00046575,30]
[392490260,1761557914235,-500.0,0.00046575,30]
[392490261,1761557914270,-500.0,0.00046575,30]
[392490262,1761557914304,-509607.46904409,0.000475,120]
[392490263,1761557914336,-635.30355796,0.000475,120]
[392490264,1761557914366,-150.0,0.000475,120]
[392490265,1761557914396,-1072.33680987,0.0004788,100]
[392490266,1761557914425,-206.82778082,0.00047945,60]
[392490267,1761557914454,-1000.0,0.00047999,120]
[392490268,1761557914483,-1000.0,0.00048,120]
[392490269,1761557914510,-2279.73954619,0.00048,120]
[392490270,1761557914538,-5050.10384173,0.00048,120]
[392490271,1761557914566,-150.0,0.00048,120]
[392490272,1761557914594,-150.0,0.00048,120]
[392490273,1761557914623,-400.0,0.00048,120]
[392490274,1761557914652,-100000.0,0.00048,120]
[392490275,1761557914680,-1027.90960913,0.00048,120]
[392490276,1761557914714,-178.36197011,0.00048,120]
[392490277,1761557914745,-1000000.0,0.00048,120]
[392490278,1761557914776,-1000000.0,0.00048,120]
[392490279,1761557914807,-1000000.0,0.00048,120]
[392490280,1761557914951,-30084.69350255,0.00048,120]
[392490281,1761557914988,-236.46525117,0.00048,30]
[392490282,1761557915021,-2510.5567814,0.00048,120]
[392490283,1761557915055,-362.94846941,0.00048,120]
[392490284,1761557915087,-151.0,0.00048,120]
[392490285,1761557915119,-151.3,0.00048,30]
[392490286,1761557915150,-151.0,0.00048,120]
[392490287,1761557915183,-151.0,0.00048,120]
[392490288,1761557915214,-151.0,0.00048,120]
[392490289,1761557915245,-151.0,0.00048,120]
[392490290,1761557915275,-247.09937,0.00048,120]
[392490291,1761557915306,-151.0,0.00048,120]
[392490292,1761557915340,-209.414135,0.00048,120]
[392490293,1761557915370,-209.414135,0.00048,120]
[392490294,1761557915400,-209.414135,0.00048,120]
[392490295,1761557915428,-209.414135,0.00048,120]
[392490296,1761557915457,-151.0,0.00048,30]
[392490297,1761557915486,-1092.0,0.00048038,30]
[392490298,1761557915516,-10000.0,0.000483,120]
[392490299,1761557915546,-151.0,0.000484,120]
[392490300,1761557915573,-150.0,0.000485,120]
[392490301,1761557915602,-54961.43351769,0.0004858,110]
[392490302,1761557915633,-269619.90045623,0.000488,120]
[392490303,1761557918620,-592.44779454,0.00043835,120]
[392490304,1761557918653,-500.0,0.00043835,120]
[392490305,1761557918684,-150.0,0.0004389,60]
[392490306,1761557918716,-150.0,0.0004389,60]
[392490307,1761557918747,-500.0,0.00044608,120]
[392490308,1761557918785,-500.0,0.00044998,120]
[392490309,1761557918817,-500.0,0.00044999,120]
[392490310,1761557918849,-500.0,0.00044999,120]
[392490311,1761557918891,-230379.09954377,0.000488,120]
[392490312,1761557918925,-40391.97138536,0.000488,120]
[392490313,1761557918958,-499999.0,0.000488,120]
[392490314,1761557918989,-326185.09913984,0.000488,120]
[392490315,1761557919021,-15971.89043164,0.000488,120]
[392490316,1761557919051,-9988.33836219,0.000488,120]
[392490317,1761557919080,-910.32040429,0.000488,120]
[392490318,1761557919114,-444.19364437,0.000488,120]
[392490319,1761557919146,-686.08089572,0.0004888,120]
[392490320,1761557919179,-1225.67579268,0.000489,120]
[392490321,1761557919211,-944.86533688,0.000489,34]
[392490322,1761557919245,-181.87208177,0.000489,120]
[392490323,1761557919275,-1576.71,0.000489,30]
[392490324,1761557919305,-1000.0,0.00048999,120]
[392490325,1761557919337,-1000.0,0.00049,120]
[392490326,1761557919365,-784.59226444,0.00049,30]
[392490327,1761557919393,-26276.25230561,0.00049,120]
[392490328,1761557919421,-2179.28268887,0.00049,120]
[392490329,1761557919449,-3000.0,0.00049,120]
[392490330,1761557919477,-150.0,0.00049,120]
[392490331,1761557919506,-390.0,0.00049,120]
[392490332,1761557919535,-1930.0,0.00049,120]
[392490333,1761557919564,-2682.0,0.00049,120]
[392490334,1761557919594,-176.37329544,0.00049,120]
[392490335,1761557919623,-163.6092921,0.00049,120]
[392490336,1761557919653,-160.0,0.000491,120]
[392490337,1761557919682,-10000.0,0.000493,120]
[392490338,1761557919711,-300.0,0.00049315,30]
[392490339,1761557919738,-300.0,0.00049315,30]
[392490340,1761557919767,-300.0,0.00049315,30]
[392490341,1761557919796,-500.0,0.00049315,120]
[392490342,1761557919825,-151.0,0.00049315,120]
[392490343,1761557919855,-151.0,0.00049315,120]
[392490344,1761557919887,-151.0,0.00049315,120]
[392490345,1761557919918,-151.0,0.00049315,120]
[392490346,1761557919948,-244.540155,0.00049315,120]
[392490347,1761557919977,-2000.0,0.0004944,63]
[392490348,1761557920006,-148537.90030872,0.000495,120]
[392490349,1761557920034,-363.65578965,0.000495,120]
[392490350,1761557920063,-1391.58207367,0.000495,120]